bitfinex/quotes_SOLUSD_20241115
["timestamp","ask_amount","ask_price","bid_price","bid_amount"]
[1731702450513,20.62005444,214.59,214.51,20.62005444]
[1731702450713,20.62005444,214.57,214.49,36.93775444]
[1731702450903,20.62005444,214.57,214.5,20.71372906]
[1731702451106,11.6472,214.65,214.51,20.62005444]
[1731702451107,4.6602,214.58,214.51,20.62005444]
[1731702451311,25.28025444,214.58,214.51,20.62005444]
[1731702451527,20.62005444,214.57,214.5,0.09367462]
[1731702451834,20.62005444,214.57,214.5,25.37562906]
[1731702452020,20.62005444,214.6,214.53,23.902374]
[1731702452531,20.62005444,214.61,214.54,20.62005444]
[1731702453043,20.62005444,214.62,214.54,20.62005444]
[1731702453228,20.62005444,214.64,214.56,44.52242844]
[1731702453457,20.62005444,214.64,214.57,20.62005444]
[1731702453774,20.62005444,214.68,214.6,20.62005444]
[1731702454022,20.62005444,214.69,214.61,20.62005444]
[1731702454215,20.62005444,214.67,214.6,20.62005444]
[1731702454518,20.62005444,214.69,214.61,20.62005444]
[1731702454718,20.62005444,214.69,214.62,20.62005444]
[1731702455222,20.62005444,214.68,214.61,20.62005444]
[1731702455422,20.62005444,214.64,214.58,15.2538]
[1731702455629,20.62005444,214.6,214.58,15.2538]
[1731702455837,24.027864,214.69,214.56,6.5156]
[1731702456710,20.62005444,214.58,214.56,6.5156]
[1731702457335,20.62005444,214.59,214.56,6.5156]
[1731702457638,20.62005444,214.58,214.56,6.5156]
[1731702457834,20.62005444,214.59,214.56,6.5156]
[1731702458337,20.62005444,214.62,214.57,0.09367462]
[1731702458539,20.62005444,214.63,214.57,0.09367462]
[1731702458739,20.62005444,214.64,214.57,20.71372906]
[1731702459640,20.62005444,214.62,214.57,0.09367462]
[1731702460037,20.62005444,214.61,214.57,0.09367462]
[1731702460231,20.62005444,214.59,214.56,6.5156]
[1731702460549,20.62005444,214.61,214.56,6.5156]
[1731702460643,20.62005444,214.63,214.57,0.09367462]
[1731702460937,4.6589,214.65,214.57,0.09367462]
[1731702460938,20.62005444,214.6,214.57,0.09367462]
[1731702461123,20.62005444,214.61,214.57,0.09367462]
[1731702461322,20.62005444,214.63,214.57,0.09367462]
[1731702461839,20.62005444,214.63,214.57,4.75397462]
[1731702462035,20.62005444,214.62,214.57,4.75397462]
[1731702462421,20.62005444,214.63,214.57,4.75397462]
[1731702462942,20.62005444,214.62,214.57,4.75397462]
[1731702463141,20.62005444,214.63,214.57,4.75397462]
[1731702463491,20.62005444,214.62,214.57,4.75397462]
[1731702463738,20.62005444,214.61,214.57,4.75397462]
[1731702463933,20.62005444,214.58,214.57,0.09367462]
[1731702464239,20.62005444,214.58,214.56,6.5156]
[1731702464836,20.62005444,214.57,214.53,15.2538]
[1731702465027,20.62005444,214.57,214.54,0.09367462]
[1731702465528,20.62005444,214.55,214.53,15.2538]
[1731702465732,20.62005444,214.58,214.53,19.915]
[1731702466166,20.62005444,214.58,214.54,0.09367462]
[1731702466342,20.62005444,214.59,214.54,0.09367462]
[1731702467137,20.62005444,214.6,214.54,4.75467462]
[1731702467530,20.62005444,214.59,214.54,4.75467462]
[1731702467971,20.62005444,214.61,214.54,37.02752906]
[1731702468139,20.62005444,214.71,214.61,29.995274]
[1731702468447,20.62005444,214.71,214.65,20.62005444]
[1731702468658,20.62005444,214.73,214.65,20.62005444]
[1731702469219,20.62005444,214.73,214.66,16.3048]
[1731702469425,20.62005444,214.73,214.67,0.12549]
[1731702470153,20.62005444,214.75,214.67,20.74554444]
[1731702470348,20.62005444,214.73,214.67,0.12549]
[1731702471135,20.62005444,214.69,214.64,15.6878]
[1731702471344,20.62005444,214.66,214.64,15.6878]
[1731702471850,20.62005444,214.65,214.64,15.78147462]
[1731702472148,20.62005444,214.65,214.58,15.8482]
[1731702472327,20.62005444,214.62,214.58,15.8482]
[1731702473024,20.62005444,214.63,214.58,15.8482]
[1731702473443,20.62005444,214.62,214.58,15.8482]
[1731702473636,20.62005444,214.61,214.58,15.8482]
[1731702474154,20.62005444,214.6,214.58,15.8482]
[1731702474351,20.62005444,214.59,214.53,15.1709]
[1731702474537,20.62005444,214.58,214.53,19.8322]
[1731702474738,20.62005444,214.59,214.54,0.09367462]
[1731702475559,20.62005444,214.58,214.54,0.09367462]
[1731702475747,20.62005444,214.59,214.54,0.09367462]
[1731702475932,25.27985444,214.6,214.54,0.09367462]
[1731702476129,161.9,214.69,214.56,20.83921906]
[1731702476130,20.62005444,214.64,214.56,20.83921906]
[1731702476731,20.62005444,214.65,214.57,20.62005444]
[1731702477457,20.62005444,214.64,214.58,4.6602]
[1731702478739,20.62005444,214.66,214.58,25.28025444]
[1731702479445,25.27745444,214.71,214.65,0.09367462]
[1731702479755,4.6574,214.71,214.65,20.71372906]
[1731702480139,20.62005444,214.72,214.65,0.09367462]
[1731702480341,20.62005444,214.71,214.65,0.09367462]
[1731702480870,20.62005444,214.72,214.65,4.6587]
[1731702481355,4.6566,214.75,214.69,20.62005444]
[1731702481563,25.27665444,214.75,214.68,20.62005444]
[1731702481746,20.62005444,214.74,214.67,20.62005444]
[1731702481950,4.6566,214.75,214.68,20.62005444]
[1731702482135,33.65924171,214.77,214.69,20.62005444]
[1731702482350,8.38288727,214.77,214.7,20.71372906]
[1731702482566,8.38288727,214.77,214.67,20.62005444]
[1731702482567,20.62005444,214.75,214.67,20.62005444]
[1731702482786,13.03908727,214.77,214.65,16.3055]
[1731702482787,20.62005444,214.73,214.66,20.62005444]
[1731702483247,20.62005444,214.69,214.65,16.3053]
[1731702483274,20.62005444,214.66,214.61,4.6594]
[1731702483443,20.62005444,214.65,214.61,4.6594]
[1731702483643,20.62005444,214.66,214.61,4.6594]
[1731702483950,20.62005444,214.69,214.62,20.62005444]
[1731702484146,20.62005444,214.69,214.61,16.3084]
[1731702484147,20.62005444,214.74,214.66,20.62005444]
[1731702484463,20.62005444,214.72,214.64,20.62005444]
[1731702485040,8.38288727,214.77,214.61,16.3084]
[1731702485041,20.62005444,214.73,214.65,37.01922906]
[1731702485250,20.62005444,214.74,214.67,20.62005444]
[1731702485456,20.62005444,214.75,214.68,20.62005444]
[1731702485748,20.62005444,214.74,214.67,20.62005444]
[1731702486719,20.62005444,214.74,214.68,16.3032]
[1731702486966,20.62005444,214.71,214.66,4.6583]
[1731702487167,0.12549,214.76,214.66,4.6583]
[1731702487168,20.62005444,214.72,214.66,4.6583]
[1731702488295,20.62005444,214.74,214.67,20.71372906]
[1731702488470,20.62005444,214.75,214.68,15.7225]
[1731702488680,20.62005444,214.75,214.68,36.34255444]
[1731702489550,20.62005444,214.75,214.69,4.6578]
[1731702489743,25.27655444,214.75,214.69,4.6578]
[1731702490172,20.62005444,214.75,214.69,4.6578]
[1731702490974,40.62005444,214.76,214.69,4.6578]
[1731702491448,20.62005444,214.78,214.71,20.62005444]
[1731702491767,25.27595444,214.78,214.71,20.62005444]
[1731702491966,25.27595444,214.78,214.7,20.62005444]
[1731702492183,21.06940114,214.79,214.71,20.62005444]
[1731702492370,20.62005444,214.78,214.71,20.62005444]
[1731702492541,20.62005444,214.73,214.69,11.6446]
[1731702493056,20.62005444,214.76,214.69,32.26465444]
[1731702493446,20.62005444,214.75,214.69,11.6446]
[1731702493649,20.62005444,214.76,214.69,36.92245444]
[1731702494559,20.62005444,214.77,214.7,20.62005444]
[1731702494975,20.62005444,214.77,214.69,36.92245444]
[1731702495148,20.62005444,214.76,214.69,16.3024]
[1731702495349,20.62005444,214.75,214.69,16.3024]
[1731702495756,20.62005444,214.76,214.69,16.3024]
[1731702496097,20.62005444,214.77,214.69,36.92245444]
[1731702497568,20.62005444,214.76,214.69,36.92245444]
[1731702497764,20.62005444,214.75,214.69,16.3024]
[1731702497971,20.62005444,214.76,214.69,16.3024]
[1731702499055,20.62005444,214.74,214.69,16.3024]
[1731702499772,20.62005444,214.76,214.69,16.3024]
[1731702499978,20.62005444,214.77,214.7,20.62005444]
[1731702500148,0.4493467,214.79,214.72,20.62005444]
[1731702500356,0.4493467,214.79,214.74,20.62005444]
[1731702500547,0.4493467,214.79,214.74,16.2986]
[1731702501372,21.06940114,214.79,214.74,11.6419]
[1731702501552,20.62005444,214.75,214.7,11.2435]
[1731702501873,20.62005444,214.76,214.7,22.8876]
[1731702502254,20.62005444,214.75,214.7,22.8876]
[1731702502454,20.62005444,214.73,214.7,18.2301]
[1731702502651,20.62005444,214.72,214.7,18.2301]
[1731702502869,20.62005444,214.74,214.7,18.2301]
[1731702503078,0.4493467,214.79,214.74,20.0]
[1731702503252,0.4493467,214.79,214.76,20.62005444]
[1731702503575,0.4493467,214.79,214.74,20.62005444]
[1731702504324,0.4493467,214.79,214.73,20.0]
[1731702504481,0.4493467,214.79,214.72,35.88095444]
[1731702504677,0.4493467,214.79,214.73,16.2995]
[1731702505176,0.4493467,214.79,214.74,20.62005444]
[1731702506362,0.4493467,214.79,214.77,20.62005444]
[1731702506982,0.4493467,214.79,214.78,20.62005444]
[1731702507778,0.4493467,214.79,214.76,36.91725444]
[1731702507987,0.4493467,214.79,214.77,0.09367462]
[1731702508179,0.4493467,214.79,214.78,20.62005444]
[1731702508558,0.4493467,214.79,214.78,49.17832844]
[1731702508874,0.4493467,214.79,214.78,4.6559]
[1731702509068,0.4493467,214.79,214.78,25.27595444]
[1731702509986,0.4493467,214.79,214.78,49.17832844]
[1731702510887,0.4493467,214.79,214.78,25.27595444]
[1731702511074,0.4493467,214.79,214.78,4.6559]
[1731702512759,0.4493467,214.79,214.78,25.27595444]
[1731702513086,0.4493467,214.79,214.78,25.36962906]
[1731702513477,0.4493467,214.79,214.78,49.27200306]
[1731702513991,20.62005444,214.9,214.82,20.62005444]
[1731702514176,4.6528,214.93,214.81,20.62005444]
[1731702514177,20.62005444,214.89,214.81,20.62005444]
[1731702514576,20.62005444,214.88,214.81,20.62005444]
[1731702514768,20.62005444,214.89,214.81,20.62005444]
[1731702515086,20.62005444,214.94,214.78,45.84317462]
[1731702515087,20.62005444,214.87,214.82,16.2926]
[1731702515474,9.09685572,214.96,214.86,20.62005444]
[1731702515629,20.62005444,214.95,214.88,20.62005444]
[1731702515890,20.62005444,214.93,214.85,20.62005444]
[1731702516064,20.62005444,214.92,214.85,20.62005444]
[1731702516268,20.62005444,214.9,214.82,36.91265444]
[1731702516570,20.62005444,214.89,214.82,36.91265444]
[1731702516788,20.62005444,214.9,214.82,36.91265444]
[1731702517508,20.62005444,214.91,214.84,20.62005444]
[1731702517686,20.62005444,214.89,214.82,36.91265444]
[1731702518017,20.62005444,214.86,214.82,16.2926]
[1731702518183,20.62005444,214.85,214.82,16.2926]
[1731702518504,161.9,214.95,214.83,0.09367462]
[1731702518804,20.62005444,214.92,214.85,20.62005444]
[1731702518998,20.62005444,214.93,214.86,20.62005444]
[1731702519808,20.62005444,214.93,214.87,16.2888]
[1731702520307,20.62005444,214.92,214.87,16.2888]
[1731702520493,4.652,214.96,214.87,16.2888]
[1731702520494,20.62005444,214.91,214.87,16.2888]
[1731702520688,20.62005444,214.92,214.87,16.2888]
[1731702521095,20.62005444,214.93,214.87,16.2888]
[1731702521706,20.62005444,214.94,214.87,36.90885444]
[1731702522023,20.62005444,214.96,214.89,20.62005444]
[1731702522229,20.62005444,214.96,214.88,20.62005444]
[1731702522608,20.62005444,214.95,214.88,20.62005444]
[1731702522910,20.62005444,214.95,214.89,16.2873]
[1731702524176,20.62005444,214.94,214.87,20.62005444]
[1731702524396,20.62005444,214.94,214.86,43.89095444]
[1731702524582,20.62005444,214.92,214.86,23.2709]
[1731702524811,20.62005444,214.93,214.86,23.2709]
[1731702525172,20.62005444,214.9,214.84,16.2911]
[1731702525212,20.62005444,214.91,214.84,16.2911]
[1731702525403,20.62005444,214.92,214.84,36.91115444]
[1731702525804,20.62005444,214.93,214.85,20.71372906]
[1731702526389,20.62005444,214.93,214.86,16.2895]
[1731702526587,20.62005444,214.92,214.86,16.2895]
[1731702527131,20.62005444,214.97,214.9,20.62005444]
[1731702527495,20.62005444,214.97,214.9,19.62005444]
[1731702527822,20.62005444,214.98,214.9,19.62005444]
[1731702528108,20.62005444,214.97,214.9,19.62005444]
[1731702528393,20.62005444,214.97,214.88,6.0524]
[1731702528394,20.62005444,214.96,214.89,60.80972844]
[1731702529912,20.62005444,214.97,214.91,16.2858]
[1731702530911,20.62005444,214.99,214.91,36.90585444]
[1731702531108,20.62005444,214.99,214.92,20.62005444]
[1731702531615,21.06940114,215.01,214.93,20.62005444]
[1731702531807,20.62005444,215.0,214.93,20.62005444]
[1731702532635,20.62005444,214.99,214.92,20.62005444]
[1731702533120,20.62005444,215.0,214.93,20.62005444]
[1731702533318,20.62005444,215.0,214.92,20.62005444]
[1731702533619,20.62005444,214.98,214.91,11.6327]
[1731702533789,20.62005444,214.98,214.91,32.25275444]
[1731702533991,20.62005444,214.94,214.91,16.2858]
[1731702534219,20.62005444,214.93,214.91,16.2858]
[1731702534702,20.62005444,214.92,214.91,16.37947462]
[1731702535011,12.86565668,214.92,214.91,11.6327]
[1731702535220,12.86565668,214.93,214.91,11.6327]
[1731702535755,12.86565668,214.92,214.89,0.09367462]
[1731702535905,12.86565668,214.91,214.88,4.6536]
[1731702536116,12.86565668,214.9,214.88,16.288]
[1731702536796,20.58863638,214.9,214.88,16.288]
[1731702537194,20.58863638,214.9,214.88,11.6344]
[1731702537493,20.58863638,214.91,214.88,16.2881]
[1731702538216,20.58863638,214.9,214.88,16.2881]
[1731702539103,20.58863638,214.91,214.88,16.2881]
[1731702540916,20.58863638,214.92,214.88,16.2881]
[1731702541297,20.58863638,214.89,214.88,11.6344]
[1731702541625,20.58863638,214.89,214.84,16.2908]
[1731702541946,20.58863638,214.86,214.84,16.2908]
[1731702542288,20.58863638,214.86,214.81,16.1939]
[1731702542289,20.58863638,214.85,214.81,16.1939]
[1731702542501,20.58863638,214.86,214.82,16.2925]
[1731702543313,20.58863638,214.87,214.84,16.2911]
[1731702543615,20.58863638,214.88,214.84,16.2911]
[1731702544021,20.58863638,214.87,214.84,16.2911]
[1731702544393,20.58863638,214.88,214.84,16.2911]
[1731702544805,20.58863638,214.85,214.83,0.09367462]
[1731702545012,20.58863638,214.86,214.83,0.09367462]
[1731702545404,20.58863638,214.85,214.8,11.6385]
[1731702545618,20.58863638,214.81,214.78,4.6559]
[1731702545808,20.58863638,214.8,214.76,4.6562]
[1731702546205,20.58863638,214.81,214.76,4.6562]
[1731702546501,20.58863638,214.81,214.76,0.09367462]
[1731702546702,20.58863638,214.8,214.75,11.6409]
[1731702546914,20.58863638,214.79,214.75,11.6409]
[1731702547604,20.58863638,214.8,214.75,11.6409]
[1731702547935,20.58863638,214.82,214.76,0.09367462]
[1731702548217,20.58863638,214.77,214.71,11.6435]
[1731702548473,20.58863638,214.75,214.71,11.6435]
[1731702548921,20.58863638,214.75,214.72,0.09367462]
[1731702549520,20.58863638,214.77,214.74,23.87055862]
[1731702550222,21.3029,214.82,214.74,23.776884]
[1731702550223,20.58863638,214.75,214.74,23.776884]
[1731702550465,20.58863638,214.75,214.71,16.3007]
[1731702550605,20.58863638,214.73,214.71,16.3007]
[1731702550914,20.58863638,214.73,214.67,4.6581]
[1731702551117,4.7555,214.8,214.67,25.24673638]
[1731702551118,20.58863638,214.74,214.67,25.24673638]
[1731702551297,20.71412638,214.76,214.69,20.58863638]
[1731702551504,20.58863638,214.75,214.68,20.58863638]
[1731702551815,20.58863638,214.75,214.69,0.09367462]
[1731702552124,20.71412638,214.76,214.69,20.682311]
[1731702553104,0.12549,214.77,214.71,20.682311]
[1731702553303,0.12549,214.77,214.72,23.776884]
[1731702553503,0.12549,214.77,214.72,28.433984]
[1731702554718,20.71412638,214.79,214.72,28.433984]
[1731702554919,20.71412638,214.79,214.72,49.02262038]
[1731702555122,0.12549,214.79,214.73,25.24553638]
[1731702555321,20.58863638,214.81,214.74,44.459195]
[1731702555532,15.0462,214.82,214.77,20.58863638]
[1731702555740,15.0462,214.82,214.76,20.58863638]
[1731702556040,25.24333638,214.84,214.76,20.58863638]
[1731702556359,25.24283638,214.86,214.79,20.58863638]
[1731702556838,25.24283638,214.86,214.79,12.87507546]
[1731702556839,17.52927546,214.86,214.79,12.87507546]
[1731702557541,17.52927546,214.86,214.79,17.53067546]
[1731702557845,0.12549,214.85,214.79,17.53067546]
[1731702558216,0.12549,214.85,214.8,12.87507546]
[1731702558417,0.12549,214.85,214.78,36.65195946]
[1731702558641,0.12549,214.85,214.78,12.87507546]
[1731702558813,0.12549,214.83,214.77,11.64]
[1731702559441,13.00056546,214.83,214.77,11.64]
[1731702559951,12.87507546,214.82,214.76,23.87055862]
[1731702560115,13.00056546,214.83,214.76,36.74563408]
[1731702561023,0.12549,214.83,214.77,17.53117546]
[1731702561518,13.00056546,214.83,214.77,4.6561]
[1731702562714,4.78039,214.83,214.77,17.53117546]
[1731702563526,0.12549,214.84,214.77,4.6561]
[1731702563740,0.12549,214.86,214.82,12.87507546]
[1731702564323,0.12549,214.86,214.81,12.87507546]
[1731702565016,4.77969,214.86,214.81,12.87507546]
[1731702565533,4.77969,214.86,214.79,12.87507546]
[1731702565839,0.12549,214.85,214.78,24.51487546]
[1731702566021,0.12549,214.84,214.78,11.6398]
[1731702566544,0.12549,214.84,214.76,36.65195946]
[1731702566545,0.12549,214.82,214.76,36.65195946]
[1731702566720,0.12549,214.82,214.78,12.87507546]
[1731702567119,0.12549,214.83,214.78,12.87507546]
[1731702567424,0.12549,214.83,214.79,12.87507546]
[1731702567631,0.12549,214.83,214.78,12.87507546]
[1731702568641,13.00056546,214.84,214.77,17.53107546]
[1731702568837,0.12549,214.82,214.77,17.53107546]
[1731702569742,0.12549,214.82,214.78,12.87507546]
[1731702569952,0.12549,214.84,214.79,12.87507546]
[1731702570349,0.12549,214.84,214.77,4.6561]
[1731702570350,0.12549,214.84,214.78,12.87507546]
[1731702571851,4.78009,214.84,214.78,17.53097546]
[1731702572994,17.65516546,214.84,214.77,12.87507546]
[1731702573129,17.65516546,214.84,214.76,48.29285946]
[1731702573429,17.65516546,214.84,214.76,52.94915946]
[1731702574229,0.12549,214.82,214.76,12.87507546]
[1731702574552,12.87507546,214.79,214.72,16.3]
[1731702574753,0.12549,214.71,214.62,11.6484]
[1731702575066,12.87507546,214.68,214.62,11.6484]
[1731702575231,0.12549,214.67,214.6,17.53487546]
[1731702575432,0.12549,214.67,214.62,12.87507546]
[1731702575623,0.12549,214.7,214.64,12.87507546]
[1731702576053,0.12549,214.7,214.63,12.87507546]
[1731702576633,0.12549,214.7,214.63,17.53407546]
[1731702576853,13.00056546,214.7,214.64,23.776884]
[1731702577058,0.12549,214.7,214.64,23.776884]
[1731702578328,0.12549,214.7,214.66,12.87507546]
[1731702578526,0.12549,214.71,214.66,12.87507546]
[1731702578731,4.6569,214.74,214.68,12.87507546]
[1731702578927,0.12549,214.73,214.68,12.87507546]
[1731702579157,0.12549,214.73,214.67,12.87507546]
[1731702579459,0.12549,214.73,214.67,23.776884]
[1731702579831,4.6572,214.72,214.66,12.87507546]
[1731702580129,0.12549,214.71,214.66,12.87507546]
[1731702580961,4.6574,214.71,214.66,12.87507546]
[1731702581252,4.6574,214.71,214.66,23.776884]
[1731702581450,13.00056546,214.7,214.65,0.09367462]
[1731702581838,12.87507546,214.69,214.65,0.09367462]
[1731702582043,0.12549,214.68,214.65,0.09367462]
[1731702582545,0.12549,214.7,214.65,12.96875008]
[1731702582754,12.87507546,214.68,214.65,0.09367462]
[1731702583062,0.12549,214.68,214.65,0.09367462]
[1731702583246,13.00056546,214.68,214.65,0.09367462]
[1731702583448,0.12549,214.68,214.65,0.09367462]
[1731702584413,0.12549,214.7,214.65,0.09367462]
[1731702585280,4.78319,214.7,214.65,0.09367462]
[1731702586160,17.65826546,214.7,214.65,0.09367462]
[1731702586461,13.00056546,214.66,214.65,0.09367462]
[1731702587157,17.65906546,214.66,214.65,0.09367462]
[1731702588456,17.78455546,214.66,214.65,0.09367462]
[1731702589170,179.68455546,214.66,214.65,0.09367462]
[1731702589332,0.35098,214.64,214.54,15.7315]
[1731702589533,13.00056546,214.59,214.52,17.53637546]
[1731702589728,13.00056546,214.57,214.51,16.3161]
[1731702589953,12.87507546,214.57,214.51,16.3161]
[1731702590332,13.00056546,214.56,214.49,21.0576]
[1731702590547,12.87507546,214.55,214.49,21.0576]
[1731702591143,12.87507546,214.55,214.49,4.662]
[1731702591748,17.66126546,214.56,214.49,4.662]
[1731702592173,17.66126546,214.56,214.49,23.776884]
[1731702592339,13.00056546,214.54,214.49,23.776884]
[1731702592557,0.12549,214.54,214.5,12.87507546]
[1731702592862,0.12549,214.54,214.49,36.65195946]
[1731702593159,0.12549,214.55,214.49,23.776884]
[1731702593461,13.00056546,214.55,214.49,23.776884]
[1731702593878,17.66156546,214.55,214.49,23.776884]
[1731702594363,4.78649,214.55,214.48,29.19327546]
[1731702594537,17.66156546,214.55,214.48,16.3182]
[1731702594939,4.78649,214.55,214.49,12.87507546]
[1731702595361,0.12549,214.56,214.5,12.87507546]
[1731702595755,0.12549,214.56,214.51,12.87507546]
[1731702595982,0.12549,214.56,214.52,12.87507546]
[1731702596308,0.12549,214.56,214.51,12.87507546]
[1731702597975,16.6542,214.6,214.53,12.87507546]
[1731702597976,29.52927546,214.6,214.53,12.87507546]
[1731702598141,34.18907546,214.6,214.53,12.87507546]
[1731702598564,21.314,214.6,214.54,12.87507546]
[1731702598765,4.6598,214.6,214.54,12.87507546]
[1731702599063,0.12549,214.59,214.55,12.87507546]
[1731702599265,21.1587,214.65,214.58,12.87507546]
[1731702599473,11.1395,214.67,214.61,12.87507546]
[1731702599658,12.87507546,214.66,214.53,43.87055862]
[1731702599974,12.87507546,214.64,214.57,12.87507546]
[1731702600547,17.53307546,214.69,214.62,12.87507546]
[1731702600885,161.9,214.74,214.67,12.87507546]
[1731702600886,4.6571,214.73,214.67,12.87507546]
[1731702601059,17.53217546,214.73,214.66,12.87507546]
[1731702601367,10.6637,214.77,214.63,23.99604862]
[1731702601546,12.975075,214.8,214.63,23.87055862]
[1731702601748,0.1,214.78,214.63,23.87055862]
[1731702601962,0.1,214.8,214.63,23.87055862]
[1731702602267,0.1,214.78,214.63,23.87055862]
[1731702602466,12.87507546,214.75,214.64,0.09367462]
[1731702602777,17.53167546,214.75,214.68,12.87507546]
[1731702603074,0.12549,214.74,214.68,12.87507546]
[1731702603264,12.87507546,214.77,214.7,12.87507546]
[1731702603456,17.53077546,214.79,214.71,12.87507546]
[1731702603655,12.87507546,214.78,214.71,12.87507546]
[1731702603969,17.53077546,214.79,214.72,12.87507546]
[1731702604751,43.84774701,214.82,214.75,12.87507546]
[1731702604964,14.47277155,214.82,214.77,12.87507546]
[1731702605549,14.47277155,214.82,214.76,12.87507546]
[1731702605794,19.12787155,214.82,214.76,12.87507546]
[1731702606070,32.00294701,214.82,214.75,12.87507546]
[1731702606180,19.12787155,214.82,214.76,12.87507546]
[1731702606355,32.00294701,214.82,214.75,12.87507546]
[1731702606556,12.87507546,214.81,214.74,12.87507546]
[1731702606754,32.00294701,214.82,214.75,12.87507546]
[1731702606959,14.47277155,214.82,214.77,12.87507546]
[1731702607468,14.47277155,214.82,214.78,12.87507546]
[1731702607726,14.47277155,214.82,214.81,12.87507546]
[1731702608769,14.47277155,214.82,214.81,17.53027546]
[1731702608977,14.47277155,214.82,214.81,41.30715946]
[1731702609320,14.47277155,214.82,214.81,41.43264946]
[1731702610660,14.47277155,214.82,214.81,54.30772492]
[1731702611265,28.9455431,214.83,214.82,23.902374]
[1731702611451,28.9455431,214.83,214.82,65.69791492]
[1731702611649,28.9455431,214.83,214.82,52.82283946]
[1731702611848,12.87507546,214.94,214.82,52.82283946]
[1731702612054,12.87507546,214.94,214.87,12.87507546]
[1731702613079,12.87507546,214.94,214.88,4.6537]
[1731702613372,12.87507546,214.96,214.89,12.87507546]
[1731702613555,12.87507546,214.97,214.9,12.87507546]
[1731702613756,12.87507546,214.98,214.91,12.87507546]
[1731702613952,12.87507546,214.99,214.92,12.87507546]
[1731702614158,12.87507546,215.0,214.93,12.87507546]
[1731702614372,12.87507546,214.99,214.92,12.87507546]
[1731702614569,12.87507546,214.96,214.89,18.99027546]
[1731702614758,12.87507546,214.99,214.92,12.87507546]
[1731702615149,12.87507546,214.98,214.91,12.87507546]
[1731702615570,12.87507546,214.95,214.89,6.1152]
[1731702615800,12.87507546,214.95,214.89,10.7686]
[1731702616338,12.87507546,214.94,214.89,4.6534]
[1731702617075,12.87507546,214.95,214.89,4.6534]
[1731702617773,12.87507546,214.94,214.89,4.6534]
[1731702617969,4.77659,215.0,214.9,12.87507546]
[1731702618282,12.87507546,214.96,214.89,17.52847546]
[1731702619074,12.87507546,214.95,214.88,24.50947546]
[1731702619954,12.87507546,214.95,214.89,12.87507546]
[1731702620780,12.87507546,214.95,214.89,4.6534]
[1731702621565,4.6518,214.97,214.89,17.52847546]
[1731702621755,12.87507546,214.95,214.89,17.52847546]
[1731702622482,12.87507546,214.95,214.89,4.6534]
[1731702622779,12.87507546,214.95,214.89,17.52847546]
[1731702623372,12.87507546,214.95,214.89,12.87507546]
[1731702623781,12.87507546,214.95,214.88,12.87507546]
[1731702623967,12.87507546,214.94,214.87,12.87507546]
[1731702624170,12.87507546,214.95,214.89,12.87507546]
[1731702625127,0.12549,215.0,214.93,12.87507546]
[1731702625128,17.52637546,215.0,214.93,12.87507546]
[1731702625667,17.52637546,215.0,214.93,17.52757546]
[1731702626002,12.87507546,214.99,214.92,12.87507546]
[1731702626169,12.87507546,214.98,214.91,29.16027546]
[1731702626367,12.87507546,214.97,214.91,16.2852]
[1731702626796,12.87507546,214.93,214.87,23.902374]
[1731702626904,12.87507546,214.92,214.87,23.776884]
[1731702627670,12.87507546,214.91,214.86,16.2892]
[1731702627883,12.87507546,214.91,214.86,11.6351]
[1731702628057,12.87507546,214.89,214.87,0.09367462]
[1731702628258,12.87507546,214.88,214.83,6.6595]
[1731702628466,12.87507546,214.87,214.83,6.6595]
[1731702628663,12.87507546,214.87,214.84,0.09367462]
[1731702629079,12.87507546,214.88,214.84,0.09367462]
[1731702629294,12.87507546,214.94,214.83,11.3142]
[1731702629295,12.87507546,214.87,214.83,11.3142]
[1731702629472,12.87507546,214.87,214.84,0.09367462]
[1731702629873,12.87507546,214.88,214.84,0.09367462]
[1731702630781,12.87507546,214.87,214.84,0.09367462]
[1731702630981,12.87507546,214.87,214.82,27.5574]
[1731702631392,12.87507546,214.88,214.83,0.09367462]
[1731702631695,12.87507546,214.89,214.83,0.09367462]
[1731702631905,12.87507546,214.92,214.85,12.87507546]
[1731702632395,12.87507546,214.9,214.85,23.776884]
[1731702632575,12.87507546,214.89,214.84,11.6365]
[1731702632886,12.87507546,214.87,214.82,15.9199]
[1731702633104,12.87507546,214.83,214.78,10.7163]
[1731702633416,12.87507546,214.83,214.74,23.2831]
[1731702633417,12.87507546,214.79,214.73,6.0517]
[1731702633702,12.87507546,214.75,214.72,15.3831]
[1731702633995,12.87507546,214.76,214.72,15.3831]
[1731702634309,12.87507546,214.78,214.73,0.09367462]
[1731702634678,12.87507546,214.81,214.74,12.87507546]
[1731702634877,4.6544,214.85,214.73,0.09367462]
[1731702634878,12.87507546,214.82,214.75,12.87507546]
[1731702635096,4.6544,214.85,214.73,36.87112408]